bitfinex/quotes_SOLUSD_20250609
["timestamp","ask_amount","ask_price","bid_price","bid_amount"]
[1749485227818,6.43136835,155.49,155.45,19.87085026]
[1749485228026,4.81105953,155.48,155.45,19.87085026]
[1749485228229,4.81105953,155.47,155.45,19.87085026]
[1749485228410,27.91465867,155.5,155.46,19.87085026]
[1749485228618,4.80932242,155.49,155.46,19.87085026]
[1749485228815,4.80932242,155.48,155.46,19.87085026]
[1749485229024,4.80932242,155.47,155.45,26.3036188]
[1749485229335,4.8078993,155.49,155.45,26.3036188]
[1749485229504,4.8078993,155.48,155.45,26.3036188]
[1749485229706,4.8078993,155.49,155.47,19.87085026]
[1749485229909,1.6129,155.5,155.47,19.87085026]
[1749485230111,4.80730428,155.49,155.46,29.95085026]
[1749485230331,4.80503441,155.49,155.46,29.95085026]
[1749485231130,21.48375026,155.5,155.46,36.38329457]
[1749485231318,32.71769972,155.5,155.46,29.95085026]
[1749485231520,1.6129,155.5,155.46,36.38332464]
[1749485232332,6.41571329,155.5,155.46,36.38332464]
[1749485233132,6.41571329,155.5,155.47,19.87085026]
[1749485233318,1.6129,155.5,155.47,19.87085026]
[1749485235336,1.6129,155.5,155.47,26.30293262]
[1749485237835,1.6129,155.5,155.48,19.87085026]
[1749485238048,26.30093735,155.52,155.48,19.87085026]
[1749485238419,26.30093735,155.52,155.48,26.30250963]
[1749485238931,26.30093735,155.52,155.48,19.87085026]
[1749485239125,26.30093735,155.52,155.48,26.30252777]
[1749485239738,6.43008709,155.52,155.48,19.87085026]
[1749485239929,26.30093735,155.52,155.48,26.30254195]
[1749485241239,19.13688532,155.52,155.48,12.70679823]
[1749485242447,13.01941042,155.54,155.49,12.70679823]
[1749485242641,8.2299,155.54,155.5,12.70679823]
[1749485242837,27.36591741,155.54,155.5,12.70679823]
[1749485243039,27.36591741,155.54,155.49,12.70679823]
[1749485244144,12.70679823,155.53,155.49,12.70679823]
[1749485246137,19.13665099,155.53,155.49,12.70679823]
[1749485246336,19.13665099,155.53,155.47,6.43205513]
[1749485246523,19.13665099,155.53,155.48,12.70679823]
[1749485248934,19.13665099,155.53,155.48,22.78679823]
[1749485249333,12.70679823,155.52,155.48,10.08]
[1749485249559,12.70679823,155.52,155.48,22.78679823]
[1749485251560,19.13724096,155.52,155.48,22.78679823]
[1749485252044,6.43044273,155.52,155.48,22.78679823]
[1749485258346,6.43044273,155.52,155.49,12.70679823]
[1749485260052,6.42962772,155.53,155.49,12.70679823]
[1749485260865,19.13642595,155.53,155.49,12.70679823]
[1749485261160,19.13642595,155.53,155.48,22.78679823]
[1749485261370,19.13642595,155.53,155.49,12.70679823]
[1749485265451,19.13642595,155.53,155.48,22.78679823]
[1749485266358,23.93613175,155.53,155.48,22.78679823]
[1749485267666,23.93613175,155.53,155.49,12.70679823]
[1749485269252,19.13642595,155.53,155.49,12.70679823]
[1749485270356,6.42962772,155.53,155.49,12.70679823]
[1749485270557,14.65930582,155.54,155.5,12.70679823]
[1749485270747,1.5926,155.54,155.5,12.70679823]
[1749485271569,8.02184451,155.54,155.5,12.70679823]
[1749485271775,4.80741722,155.53,155.5,12.70679823]
[1749485271979,20.72864274,155.54,155.5,12.70679823]
[1749485272154,4.80741722,155.53,155.5,12.70679823]
[1749485272454,20.72864274,155.54,155.5,12.70679823]
[1749485272653,4.8087527,155.53,155.5,12.70679823]
[1749485272870,20.72864274,155.54,155.5,12.70679823]
[1749485273068,4.80876083,155.53,155.5,12.70679823]
[1749485273277,20.72864274,155.54,155.5,12.70679823]
[1749485273453,4.80987694,155.53,155.5,12.70679823]
[1749485273764,20.72864274,155.54,155.5,12.70679823]
[1749485274079,4.80979921,155.53,155.5,12.70679823]
[1749485274277,20.72864274,155.54,155.5,12.70679823]
[1749485274481,4.81116354,155.53,155.5,12.70679823]
[1749485274654,20.72864274,155.54,155.5,12.70679823]
[1749485274856,4.81114416,155.53,155.5,12.70679823]
[1749485275154,20.72864274,155.54,155.5,12.70679823]
[1749485275381,4.81154048,155.53,155.5,12.70679823]
[1749485275678,20.72864274,155.54,155.5,12.70679823]
[1749485275852,4.81162792,155.53,155.5,12.70679823]
[1749485276049,20.72864274,155.54,155.5,12.70679823]
[1749485276352,4.81159061,155.53,155.5,12.70679823]
[1749485276552,20.72864274,155.54,155.5,12.70679823]
[1749485276892,4.81204072,155.53,155.5,12.70679823]
[1749485277173,20.72864274,155.54,155.5,12.70679823]
[1749485277373,11.2424196,155.53,155.49,12.70679823]
[1749485277571,6.4298379,155.53,155.49,12.70679823]
[1749485278358,19.13663613,155.53,155.48,10.08]
[1749485278579,19.13663613,155.53,155.48,22.78679823]
[1749485278993,19.13663613,155.53,155.49,12.70679823]
[1749485279175,4.81346268,155.52,155.49,12.70679823]
[1749485279360,19.13663613,155.53,155.49,12.70679823]
[1749485280583,6.4298379,155.53,155.49,12.70679823]
[1749485282657,4.81635724,155.52,155.49,12.70679823]
[1749485282860,6.4298379,155.53,155.49,12.70679823]
[1749485283060,4.81634816,155.52,155.49,12.70679823]
[1749485283260,6.4298379,155.53,155.49,12.70679823]
[1749485283486,4.81660392,155.52,155.49,12.70679823]
[1749485283681,6.4298379,155.53,155.49,12.70679823]
[1749485283865,4.81658816,155.52,155.49,12.70679823]
[1749485284065,6.4298379,155.53,155.49,12.70679823]
[1749485284367,4.81665907,155.52,155.49,12.70679823]
[1749485284573,6.4298379,155.53,155.5,12.70679823]
[1749485284783,4.81695126,155.52,155.49,12.70679823]
[1749485284965,6.4298379,155.53,155.49,12.70679823]
[1749485285286,4.81697229,155.52,155.49,12.70679823]
[1749485285479,6.4298379,155.53,155.5,12.70679823]
[1749485285867,4.81721508,155.52,155.5,12.70679823]
[1749485286170,6.4298379,155.53,155.5,12.70679823]
[1749485286514,4.81758159,155.52,155.5,12.70679823]
[1749485286786,6.4298379,155.53,155.5,12.70679823]
[1749485286961,4.81755042,155.52,155.5,12.70679823]
[1749485287158,19.13663613,155.53,155.49,12.70679823]
[1749485287361,4.81801308,155.52,155.49,12.70679823]
[1749485287561,19.13663613,155.53,155.49,12.70679823]
[1749485287787,4.81799207,155.52,155.49,12.70679823]
[1749485287974,12.70679823,155.53,155.49,12.70679823]
[1749485288175,4.81816759,155.52,155.49,12.70679823]
[1749485288376,12.70679823,155.53,155.49,12.70679823]
[1749485288589,4.81819444,155.52,155.49,12.70679823]
[1749485288891,12.70679823,155.53,155.49,12.70679823]
[1749485289187,4.81814433,155.52,155.49,19.13795938]
[1749485289392,12.70679823,155.53,155.49,19.13795938]
[1749485289564,4.81841571,155.52,155.49,19.13795938]
[1749485289763,12.70679823,155.53,155.49,19.13795938]
[1749485289965,4.81844458,155.52,155.49,19.13795938]
[1749485290190,12.70679823,155.53,155.49,19.13795938]
[1749485290396,4.81834656,155.52,155.49,19.13795938]
[1749485290566,12.70679823,155.53,155.49,19.13795938]
[1749485290767,4.81835788,155.52,155.49,19.13795938]
[1749485290967,12.70679823,155.53,155.49,19.13795938]
[1749485291167,4.81835788,155.52,155.49,19.13795938]
[1749485291378,12.70679823,155.53,155.49,19.13795938]
[1749485291582,4.81831035,155.52,155.49,19.13795938]
[1749485291783,4.81843953,155.51,155.49,19.13795938]
[1749485292105,20.72866341,155.54,155.49,19.13795938]
[1749485292315,4.81831254,155.53,155.5,12.70679823]
[1749485292613,4.81831254,155.53,155.49,6.43116115]
[1749485292614,4.81831254,155.52,155.51,12.70679823]
[1749485293174,1.5926,155.54,155.51,12.70679823]
[1749485293405,4.81793204,155.53,155.51,12.70679823]
[1749485293711,1.5926,155.54,155.51,12.70679823]
[1749485293887,4.81792951,155.53,155.51,12.70679823]
[1749485294072,1.5926,155.54,155.5,19.13726421]
[1749485294073,4.81800057,155.52,155.5,19.13726421]
[1749485294394,1.5926,155.54,155.5,19.13726421]
[1749485294601,4.81793239,155.53,155.5,19.13726421]
[1749485294772,4.81793239,155.52,155.5,19.13726421]
[1749485294974,1.5926,155.54,155.5,19.13726421]
[1749485295195,4.81796407,155.53,155.5,6.43046598]
[1749485295383,4.81796407,155.52,155.5,19.13726421]
[1749485295581,14.29939823,155.54,155.5,19.13726421]
[1749485295782,4.81827168,155.53,155.5,19.13726421]
[1749485296094,14.29939823,155.54,155.5,19.13726421]
[1749485296293,4.81825377,155.53,155.5,19.13726421]
[1749485296512,4.81825377,155.52,155.5,19.13726421]
[1749485296706,14.29939823,155.54,155.5,19.13726421]
[1749485296906,17.52535965,155.53,155.49,19.13792597]
[1749485297070,4.81856142,155.52,155.49,19.13792597]
[1749485297413,17.5258971,155.51,155.48,10.08]
[1749485297573,4.81909887,155.5,155.48,10.08]
[1749485297783,12.70679823,155.51,155.48,10.08]
[1749485298116,4.81944308,155.5,155.48,10.08]
[1749485298413,12.70679823,155.5,155.48,10.08]
[1749485298793,19.13728088,155.51,155.48,10.08]
[1749485298994,4.8188963,155.5,155.48,10.08]
[1749485299204,19.13728088,155.51,155.48,10.08]
[1749485299405,4.81821901,155.5,155.48,10.08]
[1749485299714,4.81847867,155.49,155.48,10.08]
[1749485299909,4.81847867,155.49,155.48,22.78679823]
[1749485300119,19.13697359,155.52,155.48,22.78679823]
[1749485300301,4.81830501,155.51,155.48,22.78679823]
[1749485300502,4.81830501,155.5,155.48,29.21830562]
[1749485300717,25.79406207,155.53,155.48,29.21830562]
[1749485300897,4.81757491,155.52,155.48,29.21830562]
[1749485301219,4.81757491,155.51,155.48,29.21830562]
[1749485301425,25.79406207,155.53,155.48,29.21830562]
[1749485301608,4.81720676,155.52,155.48,29.21830562]
[1749485301806,4.81720676,155.51,155.48,29.21830562]
[1749485302014,25.79406207,155.53,155.48,29.21830562]
[1749485302196,4.81708069,155.52,155.48,29.21830562]
[1749485302392,4.81708069,155.51,155.48,29.21830562]
[1749485302614,25.79406207,155.53,155.48,29.21830562]
[1749485302801,4.81699444,155.52,155.48,29.21830562]
[1749485303003,4.81699444,155.51,155.48,29.21830562]
[1749485303202,19.36439823,155.53,155.48,29.21830562]
[1749485303401,4.81693762,155.52,155.48,29.21830562]
[1749485303608,4.81693762,155.51,155.48,29.21830562]
[1749485303820,19.36439823,155.53,155.48,29.21830562]
[1749485304003,4.81699601,155.52,155.48,29.21830562]
[1749485304325,4.81699601,155.51,155.48,29.21830562]
[1749485304513,19.36439823,155.53,155.48,29.21830562]
[1749485304710,4.81679227,155.52,155.48,29.21830562]
[1749485304898,17.5235905,155.51,155.48,10.08]
[1749485305094,12.70679823,155.5,155.48,10.08]
[1749485305922,17.52393675,155.49,155.48,10.08]
[1749485306232,17.52393675,155.49,155.45,102.60679823]
[1749485306410,12.70679823,155.49,155.45,102.60679823]
[1749485306794,12.70679823,155.49,155.45,12.70679823]
[1749485307227,19.13834259,155.49,155.45,12.70679823]
[1749485307733,20.73414259,155.49,155.45,12.70679823]
[1749485307934,20.73414259,155.49,155.44,10.06]
[1749485307935,12.70679823,155.48,155.44,10.06]
[1749485308101,12.70679823,155.47,155.44,10.06]
[1749485309134,1.5958,155.49,155.46,12.70679823]
[1749485310134,1.5958,155.49,155.45,12.70679823]
[1749485310290,20.73390966,155.49,155.44,29.2000271]
[1749485310495,20.73390966,155.49,155.45,12.70679823]
[1749485311034,20.73390966,155.49,155.44,22.76679823]
[1749485311218,12.70679823,155.48,155.44,22.76679823]
[1749485311610,20.73390966,155.49,155.44,22.76679823]
[1749485312930,8.02711143,155.49,155.44,22.76679823]
[1749485313135,14.30259823,155.49,155.45,12.70679823]
[1749485313324,1.5958,155.49,155.45,12.70679823]
[1749485313623,1.5958,155.49,155.46,12.70679823]
[1749485313834,19.13740687,155.51,155.46,12.70679823]
[1749485314546,12.70679823,155.47,155.44,10.06]
[1749485314718,12.70679823,155.46,155.44,10.06]
[1749485316203,19.13890731,155.47,155.44,10.06]
[1749485316608,6.43293663,155.45,155.44,10.06]
[1749485318441,19.13973486,155.45,155.44,10.06]
[1749485319536,6.43293663,155.45,155.44,10.06]
[1749485319721,12.70679823,155.45,155.44,10.06]
[1749485320625,19.13945424,155.46,155.44,10.06]
[1749485324116,12.70679823,155.46,155.44,10.06]
[1749485324615,19.1393604,155.46,155.44,10.06]
[1749485325141,12.70679823,155.45,155.44,10.06]
[1749485326725,19.13973486,155.45,155.44,10.06]
[1749485327045,19.13949384,155.46,155.44,10.06]
[1749485333259,12.70679823,155.46,155.44,10.06]
[1749485333441,19.13937284,155.46,155.44,10.06]
[1749485337864,19.13937284,155.46,155.42,12.70679823]
[1749485340699,12.70679823,155.45,155.41,22.80679823]
[1749485340980,12.70679823,155.44,155.41,10.1]
[1749485341868,6.43376439,155.43,155.41,10.1]
[1749485343260,19.14056262,155.43,155.41,10.1]
[1749485343456,12.70679823,155.42,155.41,10.1]
[1749485343772,12.70679823,155.42,155.37,22.80679823]
[1749485344159,12.70679823,155.41,155.37,10.1]
[1749485344366,12.70679823,155.4,155.37,10.1]
[1749485344985,4.80818092,155.42,155.37,22.80679823]
[1749485345281,12.70679823,155.41,155.37,22.80679823]
[1749485345483,6.43472179,155.41,155.38,12.70679823]
[1749485348874,6.43432874,155.42,155.38,12.70679823]
[1749485349104,26.0,155.45,155.4,12.70679823]
[1749485349310,12.70679823,155.44,155.4,12.70679823]
[1749485349678,12.70679823,155.43,155.39,12.70679823]
[1749485350197,19.14081962,155.43,155.39,12.70679823]
[1749485350408,6.43402139,155.43,155.39,12.70679823]
[1749485350688,19.14081962,155.43,155.39,12.70679823]
[1749485350896,6.43402139,155.43,155.39,12.70679823]
[1749485351799,19.14031205,155.44,155.39,19.14215396]
[1749485351984,19.14031205,155.44,155.4,12.70679823]
[1749485352802,12.70679823,155.45,155.4,19.14165764]
[1749485352996,12.70679823,155.46,155.41,12.70679823]
[1749485353304,19.13932106,155.46,155.41,12.70679823]
[1749485354008,12.70679823,155.45,155.41,12.70679823]
[1749485354402,19.13999939,155.45,155.41,12.70679823]
[1749485354906,6.43320116,155.45,155.41,19.14138659]
[1749485355110,19.13932825,155.46,155.42,12.70679823]
[1749485355291,14.35727824,155.47,155.43,12.70679823]
[1749485355488,20.75837647,155.47,155.43,12.70679823]
[1749485357130,8.05157824,155.47,155.44,12.70679823]
[1749485357409,6.43180585,155.48,155.45,12.70679823]
[1749485357592,6.4313219,155.49,155.46,12.70679823]
[1749485358511,7.93736035,155.51,155.47,12.70679823]
[1749485358700,4.80959109,155.5,155.47,12.70679823]
[1749485358908,20.64415858,155.51,155.47,12.70679823]
[1749485359098,4.80960572,155.5,155.47,12.70679823]
[1749485359412,20.64415858,155.51,155.47,12.70679823]
[1749485359708,4.80977173,155.5,155.47,12.70679823]
[1749485359915,20.64415858,155.51,155.47,12.70679823]
[1749485360121,4.80972317,155.5,155.47,12.70679823]
[1749485360300,20.64415858,155.51,155.47,12.70679823]
[1749485360485,4.80880171,155.5,155.47,12.70679823]
[1749485360692,20.64415858,155.51,155.47,12.70679823]
[1749485360996,4.80888912,155.5,155.47,12.70679823]
[1749485361198,6.43076035,155.51,155.47,22.76679823]
[1749485362714,6.43076035,155.51,155.48,12.70679823]
[1749485363413,6.43020974,155.52,155.48,12.70679823]
[1749485363603,4.80525698,155.51,155.48,12.70679823]
[1749485363807,19.13700797,155.52,155.48,12.70679823]
[1749485364002,4.80517932,155.51,155.48,12.70679823]
[1749485364313,19.13700797,155.52,155.48,12.70679823]
[1749485364520,4.80502442,155.51,155.48,12.70679823]
[1749485364725,19.13700797,155.52,155.48,12.70679823]
[1749485365018,4.80428072,155.51,155.48,12.70679823]
[1749485365226,19.13700797,155.52,155.48,12.70679823]
[1749485365434,4.80409088,155.51,155.48,12.70679823]
[1749485365601,19.13700797,155.52,155.48,12.70679823]
[1749485365917,4.80359277,155.51,155.48,12.70679823]
[1749485366118,19.13700797,155.52,155.48,12.70679823]
[1749485366321,4.80355551,155.51,155.48,12.70679823]
[1749485366501,19.13700797,155.52,155.48,12.70679823]
[1749485366796,4.8027936,155.51,155.48,12.70679823]
[1749485367000,19.13700797,155.52,155.48,12.70679823]
[1749485367318,4.80279619,155.51,155.48,12.70679823]
[1749485367617,19.13700797,155.52,155.48,12.70679823]
[1749485368021,19.13657151,155.53,155.48,19.13839877]
[1749485368323,6.42927186,155.54,155.5,12.70679823]
[1749485369307,6.42927186,155.54,155.49,12.70679823]
[1749485369530,23.93452267,155.54,155.49,12.70679823]
[1749485370029,12.70679823,155.52,155.48,12.70679823]
[1749485370811,12.70679823,155.51,155.47,22.76679823]
[1749485371008,12.70679823,155.5,155.47,10.06]
[1749485371207,12.70679823,155.51,155.47,10.06]
[1749485371420,12.70679823,155.51,155.47,22.76679823]
[1749485371613,6.43045463,155.51,155.47,22.76679823]
[1749485372307,6.43045463,155.51,155.48,12.70679823]
[1749485373725,19.13725286,155.51,155.47,22.76679823]
[1749485374328,6.43045463,155.51,155.47,22.76679823]
[1749485376335,19.13725286,155.51,155.47,22.76679823]
[1749485376712,12.70679823,155.49,155.47,10.06]
[1749485377320,12.70679823,155.48,155.44,10.06]
[1749485377641,6.43210908,155.47,155.43,22.76679823]
[1749485378230,6.43210908,155.47,155.44,12.70679823]
[1749485379326,6.43210908,155.47,155.44,19.86491475]
[1749485382443,6.43187056,155.48,155.45,19.86491475]
[1749485383530,7.65,155.5,155.46,19.86491475]
[1749485383726,14.08104609,155.5,155.46,19.86491475]
[1749485384041,33.94596084,155.5,155.46,19.86491475]
[1749485386044,7.98234609,155.5,155.46,19.86491475]
[1749485386639,6.430613,155.51,155.47,19.86491475]
[1749485389544,26.29552775,155.51,155.46,19.86491475]
[1749485390347,19.86491475,155.5,155.45,19.86491475]
[1749485390528,19.86491475,155.49,155.45,19.86491475]
[1749485391435,6.43169539,155.48,155.45,19.86491475]
[1749485394655,6.43169539,155.48,155.44,19.86491475]
[1749485394955,26.29661014,155.48,155.44,19.86491475]
[1749485395154,6.43169539,155.48,155.44,19.86491475]
[1749485397946,6.43169539,155.48,155.45,19.86491475]
[1749485398657,6.43169539,155.48,155.44,19.86491475]
[1749485398864,24.67558789,155.47,155.43,10.06]
[1749485399166,24.67603849,155.46,155.43,10.06]
[1749485399353,19.86491475,155.46,155.43,10.06]
[1749485399748,6.43293663,155.45,155.43,10.06]
[1749485400675,6.43210908,155.47,155.44,19.86491475]
[1749485402854,6.43210908,155.47,155.43,29.92491475]
[1749485403050,6.43210908,155.47,155.43,10.06]
[1749485403244,6.43210908,155.47,155.44,19.86491475]
[1749485409879,6.43210908,155.47,155.43,29.92491475]
[1749485411374,26.29702383,155.47,155.43,10.06]
[1749485411683,19.86491475,155.46,155.43,10.06]
[1749485412066,6.43210908,155.47,155.44,19.86491475]
[1749485412584,1.6357,155.49,155.46,19.86491475]
[1749485412794,4.81023826,155.48,155.46,19.86491475]
[1749485412965,8.06704971,155.49,155.46,19.86491475]
[1749485413164,8.06704971,155.49,155.45,19.86491475]
[1749485414172,11.24308536,155.48,155.45,19.86491475]
[1749485414483,6.4319829,155.48,155.45,19.86491475]
[1749485419294,6.4319829,155.48,155.45,12.71185295]
[1749485421586,11.24802869,155.47,155.45,12.71185295]
[1749485421795,6.43213075,155.47,155.45,12.71185295]
[1749485422199,6.43213075,155.47,155.45,22.79185295]
[1749485423796,6.43169539,155.48,155.45,22.79185295]
[1749485424095,4.81599355,155.47,155.45,22.79185295]
[1749485424271,6.43169539,155.48,155.45,22.79185295]
[1749485424471,4.8160353,155.47,155.45,22.79185295]
[1749485424676,6.43169539,155.48,155.45,22.79185295]
[1749485424877,4.81597762,155.47,155.45,22.79185295]
[1749485425077,6.43169539,155.48,155.45,22.79185295]
[1749485425277,4.81597762,155.47,155.45,22.79185295]
[1749485425501,6.43169539,155.48,155.45,22.79185295]
[1749485425692,4.81589945,155.47,155.45,22.79185295]
[1749485425906,6.43169539,155.48,155.45,22.79185295]
[1749485426082,4.81589945,155.47,155.45,22.79185295]
[1749485426283,6.43169539,155.48,155.45,22.79185295]
[1749485426484,4.81588155,155.47,155.45,22.79185295]
[1749485426684,6.43169539,155.48,155.45,22.79185295]
[1749485426898,11.24822484,155.47,155.45,22.79185295]
[1749485427099,6.43240545,155.47,155.45,22.79185295]
[1749485428496,6.43169539,155.48,155.45,22.79185295]
[1749485428700,4.81573958,155.47,155.45,22.79185295]
[1749485428903,6.43169539,155.48,155.45,22.79185295]
[1749485429103,4.81573958,155.47,155.45,22.79185295]
[1749485429298,6.43169539,155.48,155.45,22.79185295]
[1749485430103,4.8161058,155.47,155.45,22.79185295]
[1749485430298,6.43169539,155.48,155.45,22.79185295]
[1749485431314,6.43169539,155.48,155.46,12.71185295]
[1749485431509,8.0671599,155.49,155.46,12.71185295]
[1749485431690,4.81668355,155.48,155.46,12.71185295]
[1749485431891,8.0671599,155.49,155.46,12.71185295]
[1749485432092,6.4314599,155.49,155.47,12.71185295]
[1749485432301,4.81657913,155.48,155.47,12.71185295]
[1749485432505,6.4314599,155.49,155.46,12.71185295]
[1749485432793,6.43086816,155.5,155.46,12.71185295]
[1749485432999,4.81706822,155.49,155.46,12.71185295]
[1749485433201,6.43086816,155.5,155.46,12.71185295]
[1749485433402,4.81705251,155.49,155.46,12.71185295]
[1749485433606,6.43086816,155.5,155.46,12.71185295]
[1749485433797,4.81768753,155.49,155.46,12.71185295]
[1749485434115,6.43086816,155.5,155.46,12.71185295]
[1749485434416,6.43086816,155.5,155.47,12.71185295]
[1749485434417,4.81768753,155.49,155.47,12.71185295]
[1749485434619,6.43086816,155.5,155.47,12.71185295]
[1749485434795,4.81815515,155.49,155.47,12.71185295]
[1749485434991,19.14230758,155.51,155.47,12.71185295]
[1749485435297,4.81828587,155.5,155.47,12.71185295]
[1749485435494,4.81828587,155.49,155.47,12.71185295]
[1749485435796,19.14230758,155.51,155.47,12.71185295]
[1749485436098,11.24944452,155.5,155.47,12.71185295]
[1749485436302,4.81835946,155.49,155.47,12.71185295]
[1749485436507,6.43108506,155.5,155.47,12.71185295]
[1749485436709,4.81803666,155.49,155.47,12.71185295]
[1749485436917,6.43108506,155.5,155.47,12.71185295]
[1749485437091,4.81795912,155.49,155.47,12.71185295]
[1749485437294,6.43108506,155.5,155.47,12.71185295]
[1749485437494,4.81766545,155.49,155.47,12.71185295]
[1749485437713,6.43108506,155.5,155.47,12.71185295]
[1749485437918,4.81760737,155.49,155.47,12.71185295]
[1749485438119,6.43108506,155.5,155.47,12.71185295]
[1749485438322,4.81766154,155.49,155.47,12.71185295]
[1749485438516,6.43108506,155.5,155.47,12.71185295]
[1749485438715,4.81727451,155.49,155.47,12.71185295]
[1749485438907,6.43108506,155.5,155.47,12.71185295]
[1749485439103,6.43059392,155.51,155.47,12.71185295]
[1749485439414,4.81699122,155.5,155.47,12.71185295]
[1749485439611,6.43059392,155.51,155.47,12.71185295]
[1749485439795,4.81603327,155.5,155.47,12.71185295]
[1749485440125,19.14199394,155.52,155.48,12.71185295]
[1749485440419,17.52791253,155.51,155.47,12.71185295]
[1749485440620,4.81605958,155.5,155.47,12.71185295]
[1749485440825,12.71185295,155.51,155.47,12.71185295]
[1749485441023,12.71185295,155.49,155.45,61.95185295]
[1749485441206,4.81543527,155.48,155.45,61.95185295]
[1749485441406,12.71185295,155.49,155.45,61.95185295]
[1749485441709,4.81608644,155.48,155.45,61.95185295]
[1749485441907,4.81608644,155.47,155.45,61.95185295]
[1749485442102,12.71185295,155.49,155.45,61.95185295]
[1749485442307,4.81623463,155.48,155.45,61.95185295]
[1749485442625,4.81623463,155.47,155.45,49.24]
[1749485442810,6.43169539,155.48,155.45,61.95185295]
[1749485443009,4.81620395,155.47,155.45,22.79185295]
[1749485443200,6.43169539,155.48,155.45,10.08]
[1749485443518,4.81622536,155.47,155.45,10.08]
[1749485443715,6.43169539,155.48,155.45,10.08]
[1749485443911,4.81621536,155.47,155.45,10.08]
[1749485444121,6.43218276,155.47,155.45,22.79185295]
[1749485444531,6.43218276,155.47,155.45,10.08]
[1749485444914,6.43218276,155.47,155.45,22.79185295]
[1749485446022,6.43169539,155.48,155.45,22.79185295]
[1749485446501,4.81698861,155.47,155.45,22.79185295]
[1749485446705,6.43169539,155.48,155.45,22.79185295]
[1749485446920,4.81692035,155.47,155.45,22.79185295]
[1749485447234,6.43169539,155.48,155.45,22.79185295]
[1749485447435,4.81694398,155.47,155.45,22.79185295]
[1749485447609,6.43169539,155.48,155.45,22.79185295]
[1749485447929,4.81699727,155.47,155.45,22.79185295]
[1749485448131,6.43169539,155.48,155.45,22.79185295]
[1749485448325,4.8170667,155.47,155.45,22.79185295]
[1749485448531,6.43169539,155.48,155.45,22.79185295]
[1749485448826,4.81701414,155.47,155.45,22.79185295]
[1749485449030,6.43169539,155.48,155.45,22.79185295]
[1749485449229,4.81718926,155.47,155.45,22.79185295]
[1749485449435,6.43169539,155.48,155.45,22.79185295]
[1749485449731,4.81726565,155.47,155.45,22.79185295]
[1749485449924,6.43169539,155.48,155.45,22.79185295]
[1749485450127,11.24934204,155.47,155.45,22.79185295]
[1749485450336,6.43217104,155.47,155.45,22.79185295]
[1749485450628,6.43187186,155.48,155.45,22.79185295]
[1749485451437,16.07717151,155.5,155.45,22.79185295]
[1749485451605,4.81714461,155.49,155.45,22.79185295]
[1749485451825,4.81714461,155.48,155.45,22.79185295]
[1749485452030,28.78902446,155.5,155.45,22.79185295]
[1749485452238,4.81708624,155.49,155.45,22.79185295]
[1749485452439,4.81708624,155.48,155.45,22.79185295]
[1749485452645,35.21989262,155.5,155.45,22.79185295]
[1749485452831,4.81714902,155.49,155.45,22.79185295]
[1749485453031,4.81714902,155.48,155.45,22.79185295]
[1749485453235,35.21989262,155.5,155.45,22.79185295]
[1749485453453,4.81714902,155.49,155.45,22.79185295]
[1749485453755,4.81714902,155.48,155.45,22.79185295]
[1749485453961,12.71185295,155.49,155.45,22.79185295]
[1749485454256,4.81720651,155.48,155.45,22.79185295]
[1749485454465,12.71185295,155.49,155.45,22.79185295]
[1749485454631,6.43210908,155.47,155.45,22.79185295]
[1749485454833,6.43210908,155.47,155.45,10.08]
[1749485455056,4.81771741,155.46,155.45,10.08]
[1749485456738,11.25024024,155.46,155.45,10.08]
[1749485457269,6.43209139,155.48,155.45,22.79185295]
[1749485457446,4.81713463,155.47,155.45,22.79185295]
[1749485457756,6.43209139,155.48,155.45,22.79185295]
[1749485457951,4.81714841,155.47,155.45,22.79185295]
[1749485458127,8.08886549,155.49,155.46,12.71185295]
[1749485458330,6.43105524,155.5,155.47,12.71185295]
[1749485458526,4.8164673,155.49,155.47,12.71185295]
[1749485458728,19.14230758,155.51,155.47,12.71185295]
[1749485459054,4.81637895,155.5,155.47,12.71185295]
[1749485459227,4.81637895,155.49,155.47,12.71185295]
[1749485459446,19.14230758,155.51,155.47,12.71185295]
[1749485459646,4.81629544,155.5,155.47,12.71185295]
[1749485459864,4.81629544,155.49,155.47,12.71185295]
[1749485460059,6.43118433,155.5,155.47,12.71185295]
[1749485460246,4.81619717,155.49,155.47,12.71185295]
[1749485460437,6.43118433,155.5,155.47,12.71185295]
[1749485460643,4.81609907,155.49,155.47,12.71185295]
[1749485460860,6.43045463,155.51,155.48,12.71185295]
[1749485461072,4.81609594,155.5,155.48,12.71185295]
[1749485461264,6.43045463,155.51,155.48,12.71185295]
[1749485461564,4.81595166,155.5,155.48,12.71185295]
[1749485461738,14.39386977,155.53,155.49,12.71185295]
[1749485461942,17.52770763,155.52,155.5,10.06]
[1749485462142,4.81585468,155.51,155.5,10.06]
[1749485463648,11.24630931,155.51,155.5,10.06]
[1749485471168,23.95816226,155.51,155.5,10.06]
[1749485471486,11.24630931,155.51,155.5,10.06]
[1749485472283,11.24474789,155.51,155.5,10.06]